bitfinex/quotes_ETHUSD_20240530
["timestamp","ask_amount","ask_price","bid_price","bid_amount"]
[1717077251452,1.912,3786.1,3785.6,0.02903807]
[1717077254452,1.912,3785.7,3785.6,0.02903807]
[1717077254663,1.912,3785.7,3785.4,19.46]
[1717077254812,0.42021431,3787.6,3785.4,19.46]
[1717077254813,2.79,3788.1,3785.5,1.9751053]
[1717077255155,2.79,3788.1,3786.0,6.78055096]
[1717077255156,1.912,3786.3,3786.0,6.78055096]
[1717077255322,1.912,3786.3,3785.6,19.46]
[1717077255507,1.912,3786.3,3786.1,0.02887337]
[1717077255706,1.912,3786.3,3785.6,19.46]
[1717077255952,1.912,3786.3,3786.2,0.02883358]
[1717077256152,1.912,3786.3,3785.7,35.0]
[1717077256353,1.912,3786.3,3786.2,0.02883358]
[1717077256955,1.912,3786.3,3785.8,2.59588552]
[1717077257125,1.912,3786.3,3786.2,0.02883358]
[1717077257353,1.912,3786.3,3785.8,2.59588552]
[1717077257510,1.912,3786.3,3786.2,0.02883358]
[1717077257712,1.912,3786.3,3785.8,2.59588552]
[1717077257932,1.912,3786.3,3786.2,0.02883358]
[1717077258149,1.912,3786.3,3785.8,2.59588552]
[1717077258460,1.912,3786.3,3785.6,19.46]
[1717077258766,2.64088,3786.7,3785.9,0.02895295]
[1717077258929,1.912,3785.9,3785.6,19.46]
[1717077260842,2.64102,3786.5,3785.6,19.46]
[1717077261056,1.912,3786.0,3785.4,19.46]
[1717077261356,1.912,3786.0,3785.5,2.59588552]
[1717077261861,2.64075,3786.8,3785.5,2.59588552]
[1717077262020,3.1901,3787.8,3785.6,2.64157]
[1717077262021,1.912,3786.4,3785.6,2.64157]
[1717077262217,1.912,3786.4,3785.7,2.46974555]
[1717077263848,1.912,3786.4,3785.8,35.0]
[1717077265345,1.912,3786.4,3785.7,2.46974555]
[1717077268475,1.912,3786.4,3785.8,35.0]
[1717077268693,1.912,3786.4,3785.9,0.60473204]
[1717077270176,1.912,3786.0,3785.9,0.60473204]
[1717077270389,1.912,3786.0,3785.8,35.0]
[1717077270586,1.912,3786.1,3785.8,35.0]
[1717077274082,1.912,3786.1,3785.9,0.02870483]
[1717077274509,2.64075,3786.9,3785.9,0.02870483]
[1717077274789,1.912,3786.1,3785.7,19.46]
[1717077274999,1.912,3786.1,3786.0,0.0286696]
[1717077275142,2.64088,3786.7,3785.7,19.46]
[1717077275346,1.912,3786.1,3786.0,0.0286696]
[1717077275544,1.912,3786.1,3785.8,35.0]
[1717077275845,1.912,3786.1,3785.9,0.0287094]
[1717077276648,1.912,3786.1,3785.7,19.46]
[1717077276882,2.1032,3786.1,3785.8,0.02874919]
[1717077278145,4.74444,3786.1,3785.8,0.02874919]
[1717077278345,4.55324,3786.1,3785.8,0.02874919]
[1717077278779,2.64137,3785.9,3785.8,0.02874919]
[1717077278983,2.64137,3785.9,3785.0,26.24055096]
[1717077279281,1.912,3785.4,3785.1,0.02839823]
[1717077279484,1.912,3785.4,3785.1,2.62428375]
[1717077280595,1.912,3785.4,3785.1,0.02839823]
[1717077283700,2.64137,3785.9,3785.1,0.02839823]
[1717077283901,1.912,3785.4,3785.1,0.02839823]
[1717077284932,1.912,3785.4,3784.9,36.7539]
[1717077285408,1.912,3785.4,3785.0,0.02740676]
[1717077285604,1.912,3785.4,3785.1,2.59588552]
[1717077285819,1.912,3785.4,3785.2,0.02732714]
[1717077290951,1.912,3785.9,3785.2,0.02732714]
[1717077291248,1.912,3785.9,3785.3,35.0]
[1717077291605,2.64118,3786.2,3785.4,0.02725666]
[1717077291808,1.912,3786.0,3785.5,2.59588552]
[1717077292118,2.64118,3786.2,3785.6,0.02714962]
[1717077292119,1.912,3785.9,3785.6,0.02714962]
[1717077292319,2.64118,3786.2,3785.6,0.02714962]
[1717077292518,0.797,3785.7,3785.6,0.02714962]
[1717077293236,2.64118,3786.2,3785.6,0.02714962]
[1717077293435,0.797,3785.7,3785.6,0.02714962]
[1717077293622,0.797,3785.7,3785.6,0.50574169]
[1717077295710,0.797,3785.7,3785.6,0.02714962]
[1717077296017,0.797,3785.7,3785.1,35.0]
[1717077296217,0.797,3785.2,3785.1,35.0]
[1717077296961,2.64118,3786.2,3785.1,35.0]
[1717077297115,0.797,3785.2,3785.1,35.0]
[1717077297442,0.797,3785.2,3785.1,37.59588552]
[1717077300451,0.797,3785.2,3785.0,19.46]
[1717077300660,2.64139,3785.9,3785.0,19.46]
[1717077300860,0.797,3785.1,3785.0,19.46]
[1717077301046,0.797,3785.1,3785.0,35.0]
[1717077301247,0.797,3785.1,3785.0,37.59588552]
[1717077301545,0.797,3785.1,3785.0,2.59588552]
[1717077301745,2.64118,3786.2,3785.0,2.59588552]
[1717077302066,0.797,3785.2,3785.1,35.0]
[1717077303360,2.64118,3786.2,3785.1,35.0]
[1717077303594,2.64118,3786.2,3785.2,2.59588552]
[1717077303745,0.797,3785.3,3785.2,2.59588552]
[1717077303941,0.264075,3786.8,3785.2,2.59588552]
[1717077304178,2.64115,3786.3,3785.3,6.78055096]
[1717077304358,0.797,3785.4,3785.3,6.78055096]
[1717077304686,0.797,3785.4,3785.1,19.46]
[1717077304887,0.797,3785.2,3785.1,19.46]
[1717077307902,0.797,3785.2,3784.9,1.7539]
[1717077308200,0.797,3785.0,3784.9,1.7539]
[1717077308401,2.64166,3785.5,3784.9,1.7539]
[1717077308402,1.912,3785.1,3784.9,1.7539]
[1717077309262,1.912,3785.3,3784.9,1.7539]
[1717077310531,1.912,3785.3,3784.9,3.87529]
[1717077310812,1.912,3785.9,3784.9,3.87529]
[1717077310993,1.912,3785.9,3785.0,35.0]
[1717077311193,1.912,3785.9,3785.0,37.642]
[1717077311365,1.912,3785.9,3785.1,2.59588552]
[1717077311877,1.912,3785.9,3785.0,2.642]
[1717077312204,2.64087,3786.7,3785.3,2.64178]
[1717077312506,2.64087,3786.7,3785.4,3.0]
[1717077312687,1.912,3786.3,3785.4,3.28556896]
[1717077313403,1.912,3786.3,3785.5,2.64161]
[1717077313902,2.64055,3787.1,3785.5,2.64161]
[1717077314104,1.912,3786.4,3785.6,1.27077299]
[1717077314280,1.912,3786.4,3785.7,2.64145]
[1717077314802,1.912,3786.6,3785.7,2.64145]
[1717077315502,1.912,3786.6,3785.8,38.0]
[1717077317504,1.912,3786.6,3785.9,2.64136]
[1717077317684,2.64028,3787.5,3786.0,2.27820012]
[1717077317685,1.912,3786.8,3786.0,2.27820012]
[1717077317880,1.912,3786.8,3785.9,2.64136]
[1717077318194,1.912,3786.8,3786.0,35.0]
[1717077318567,2.64028,3787.5,3786.0,35.0]
[1717077318815,1.912,3787.0,3786.1,2.6412]
[1717077318998,1.912,3787.0,3786.3,2.64103]
[1717077319509,1.912,3787.0,3786.4,35.02955731]
[1717077320967,1.912,3787.0,3786.5,2.64093]
[1717077321369,1.912,3787.0,3786.7,2.6408]
[1717077321571,1.912,3787.4,3786.8,0.26702919]
[1717077321831,2.63971,3788.3,3786.9,2.64067]
[1717077321974,2.63971,3788.3,3786.9,9.42122096]
[1717077321975,1.912,3787.9,3786.9,9.42122096]
[1717077322327,1.912,3787.9,3787.0,3.031605]
[1717077322469,1.912,3787.9,3787.0,38.031605]
[1717077322674,1.912,3787.9,3787.1,2.59588552]
[1717077322980,1.912,3787.9,3787.2,0.03138852]
[1717077323369,1.912,3787.9,3787.3,35.0]
[1717077323776,1.912,3787.9,3787.4,0.0312834]
[1717077324184,1.912,3787.9,3787.1,2.59588552]
[1717077324423,2.63971,3788.3,3787.5,0.02675461]
[1717077324666,2.63971,3788.3,3787.2,1.50171065]
[1717077324961,1.912,3787.9,3787.2,1.50171065]
[1717077325224,1.912,3787.9,3787.3,0.02890442]
[1717077325432,1.912,3787.9,3787.4,35.0]
[1717077325631,1.912,3787.9,3787.5,1.30573775]
[1717077325787,1.912,3787.9,3787.5,1.33694575]
[1717077326191,2.63946,3788.7,3787.5,1.33694575]
[1717077326535,1.912,3788.2,3787.5,1.33694575]
[1717077327427,1.912,3788.2,3787.5,0.031208]
[1717077327623,1.912,3788.2,3787.5,35.031208]
[1717077327801,1.912,3788.2,3787.5,35.0]
[1717077328002,1.912,3788.2,3787.6,0.03115259]
[1717077329298,1.912,3788.2,3787.2,7.14214065]
[1717077329502,1.912,3788.2,3787.3,36.00510432]
[1717077329899,1.912,3787.8,3787.3,1.00510432]
[1717077330158,1.912,3787.8,3787.3,4.00510432]
[1717077330841,1.912,3787.8,3787.3,3.0313017]
[1717077333891,1.912,3787.8,3787.3,0.0313017]
[1717077336127,1.912,3787.4,3787.3,0.0313017]
[1717077336315,1.912,3787.4,3786.8,19.46]
[1717077336538,1.912,3787.4,3786.9,0.03123504]
[1717077339725,1.912,3787.0,3786.9,0.03123504]
[1717077340696,1.912,3787.0,3786.6,19.46]
[1717077341198,1.912,3787.0,3786.7,0.03148577]
[1717077344304,0.796,3786.8,3786.7,0.03148577]
[1717077345756,2.64062,3787.0,3786.7,0.03148577]
[1717077345919,0.796,3786.8,3786.7,0.03148577]
[1717077346118,0.796,3786.8,3786.1,35.0]
[1717077346422,0.796,3786.2,3786.1,35.0]
[1717077346620,2.64039,3787.4,3786.1,37.59588552]
[1717077346841,2.64012,3787.7,3786.2,0.55]
[1717077347043,2.64012,3787.7,3786.2,3.55]
[1717077347254,0.796,3786.7,3786.5,2.64089]
[1717077347728,0.796,3786.7,3786.6,35.0]
[1717077348155,2.63991,3788.0,3786.8,2.64073]
[1717077348536,1.91,3787.5,3786.8,2.64073]
[1717077348762,1.91,3787.5,3786.9,35.51388904]
[1717077348992,1.91,3787.5,3786.9,35.54544095]
[1717077356252,1.91,3787.5,3787.0,2.6406]
[1717077356439,1.91,3787.1,3787.0,2.6744366]
[1717077356643,1.91,3787.1,3787.0,5.27032212]
[1717077357772,1.91,3787.3,3787.0,5.27032212]
[1717077360480,1.91,3787.3,3787.0,2.62972212]
[1717077360688,3.59020128,3790.8,3787.0,2.62972212]
[1717077360890,1.91,3788.9,3788.1,2.63979]
[1717077361159,2.63808,3790.7,3787.7,2.6401]
[1717077361160,1.91,3788.2,3787.7,2.6401]
[1717077361353,1.91,3787.8,3787.5,19.46]
[1717077361587,1.91,3787.8,3787.0,2.46663807]
[1717077361906,1.91,3788.6,3787.1,2.59588552]
[1717077361907,2.64004,3787.9,3787.1,2.59588552]
[1717077362054,1.91,3787.2,3786.9,0.51388904]
[1717077362255,1.91,3787.2,3786.6,35.0]
[1717077362898,1.91,3787.2,3786.7,2.57988933]
[1717077363100,1.91,3787.2,3786.8,0.9177895]
[1717077363485,1.91,3787.2,3786.9,35.0]
[1717077363816,1.91,3787.7,3786.9,35.0]
[1717077363991,2.63964,3788.4,3787.0,2.62971278]
[1717077364196,1.91,3787.7,3787.0,5.27027278]
[1717077364361,1.91,3787.7,3787.1,2.84251665]
[1717077364562,1.91,3787.7,3787.2,0.95157919]
[1717077364778,2.70557244,3788.5,3787.3,0.83981936]
[1717077364952,2.70557244,3788.5,3787.2,0.03382468]
[1717077364953,2.63957,3788.5,3787.2,0.03382468]
[1717077365160,2.63957,3788.5,3786.6,0.54814179]
[1717077365161,1.91,3788.0,3786.6,0.54814179]
[1717077365466,2.63957,3788.5,3786.6,0.54814179]
[1717077365467,1.91,3787.6,3786.9,0.54814179]
[1717077365707,1.91,3787.6,3787.0,1.46587753]
[1717077365869,1.91,3787.6,3787.0,1.49968925]
[1717077366205,1.91,3787.6,3787.1,1.46587753]
[1717077366401,1.91,3787.6,3787.2,36.28759751]
[1717077366664,1.91,3787.6,3787.2,35.40693192]
[1717077367768,1.91,3787.6,3787.2,0.40693192]
[1717077367989,1.91,3787.6,3787.2,0.03707015]
[1717077368351,3.0,3788.8,3786.5,1.37669305]
[1717077368352,0.24706646,3790.1,3786.6,35.0]
[1717077368554,1.91,3788.6,3787.5,6.78055096]
[1717077368812,2.63923,3789.0,3787.6,0.03694458]
[1717077368958,1.91,3788.4,3787.6,0.03694458]
[1717077369153,1.91,3788.4,3787.7,35.0]
[1717077369463,1.91,3788.4,3787.8,0.03340906]
[1717077369828,1.91,3788.0,3787.8,2.41337466]
[1717077369980,1.91,3788.0,3787.8,0.03340906]
[1717077370337,1.91,3788.0,3787.7,35.0]
[1717077370597,1.91,3788.0,3787.8,0.03340283]
[1717077371002,1.91,3788.0,3787.7,35.0]
[1717077371152,1.91,3788.0,3787.9,0.03334862]
[1717077371358,1.91,3788.0,3787.5,6.78055096]
[1717077371557,1.91,3788.0,3787.6,2.62939678]
[1717077371788,1.91,3788.0,3787.6,37.62939678]
[1717077372000,1.91,3788.5,3787.6,40.26954678]
[1717077372606,2.63855,3790.0,3788.3,2.63967]
[1717077372902,1.91,3789.4,3788.5,2.63953]
[1717077373258,2.63855,3790.0,3788.6,35.04012451]
[1717077373453,1.91,3789.4,3788.6,35.04012451]
[1717077374573,1.91,3789.4,3788.7,2.63942]
[1717077374775,1.91,3789.4,3788.8,2.1159986]
[1717077375005,1.91,3789.4,3788.9,0.03992583]
[1717077375299,1.91,3789.4,3789.0,35.0]
[1717077375598,1.91,3789.4,3789.1,0.0397934]
[1717077375956,1.91,3789.4,3788.8,19.46]
[1717077376157,1.91,3789.4,3788.9,35.0]
[1717077376357,1.91,3789.4,3789.0,2.63574513]
[1717077376560,1.91,3789.4,3789.0,0.03985961]
[1717077376800,1.91,3789.4,3788.8,19.46]
[1717077377018,1.91,3788.9,3788.8,19.46]
[1717077378403,2.63901,3789.3,3788.8,19.46]
[1717077378702,1.91,3788.9,3788.8,19.46]
[1717077379121,1.91,3788.9,3788.8,19.49939478]
[1717077380104,2.63894,3789.4,3788.8,19.49939478]
[1717077380324,2.63867,3789.8,3788.8,19.49939478]
[1717077380603,2.63867,3789.8,3788.9,1.94993948]
[1717077380604,1.91,3789.1,3788.9,1.94993948]
[1717077381136,1.91,3789.1,3789.0,0.03926234]
[1717077382106,1.91,3789.1,3788.6,19.46]
[1717077382308,2.63892,3789.5,3789.0,0.03926234]
[1717077382477,1.91,3789.1,3788.6,19.46]
[1717077382681,1.91,3788.7,3788.6,19.46]
[1717077384592,1.91,3788.7,3787.2,3.0]
[1717077384593,2.63953,3788.6,3787.6,6.78055096]
[1717077384778,1.91,3787.8,3787.6,9.37643648]
[1717077384982,1.91,3787.8,3787.6,2.59588552]
[1717077386178,1.91,3787.8,3787.5,19.46]
[1717077386570,1.91,3787.8,3787.0,6.78055096]
[1717077386571,2.64019,3787.7,3786.6,38.60055096]
[1717077386767,1.91,3787.1,3786.6,6.78055096]
[1717077386960,1.91,3786.7,3786.6,7.45860606]
[1717077387188,1.91,3786.7,3786.6,0.6780551]
[1717077387408,1.91,3786.7,3786.2,35.0]
[1717077387770,1.91,3786.7,3786.3,3.0]
[1717077387965,1.91,3786.7,3785.9,6.78055096]
[1717077388498,1.91,3786.3,3785.9,6.78055096]
[1717077389516,1.91,3786.3,3785.7,19.46]
[1717077389661,2.6408,3786.8,3785.5,19.46]
[1717077389662,1.91,3785.9,3785.5,19.46]
[1717077389863,1.91,3785.9,3784.9,1.7539]
[1717077393711,1.91,3785.9,3785.0,35.0]
[1717077395101,2.64152,3785.7,3785.0,35.0]
[1717077395334,1.91,3785.2,3785.0,35.0]
[1717077395534,1.91,3785.2,3785.1,0.02978009]
[1717077396413,1.91,3785.2,3784.9,1.7539]
[1717077396836,1.91,3785.2,3785.0,0.0276956]
[1717077397020,2.64152,3785.7,3785.0,0.20585516]
[1717077397320,1.91,3785.1,3785.0,0.20585516]
[1717077400413,1.91,3785.5,3785.0,0.20585516]
[1717077400644,2.64125,3786.1,3785.0,0.17815956]
[1717077400974,1.91,3785.7,3785.5,35.0]
[1717077401273,1.91,3785.7,3785.6,0.02630489]
[1717077403547,1.91,3785.7,3784.9,1.7539]
[1717077403747,1.91,3785.2,3785.0,0.17539]
[1717077403948,1.91,3785.2,3785.0,0.20185146]
[1717077404544,1.91,3785.2,3785.0,0.02646146]
[1717077404745,1.91,3785.2,3784.9,1.7539]
[1717077404943,1.91,3785.2,3785.1,35.0]
[1717077405167,1.91,3785.2,3785.1,35.02642165]
[1717077406705,1.91,3785.6,3785.1,0.02642165]
[1717077406905,1.91,3785.7,3785.1,0.20445382]
[1717077407105,1.91,3785.7,3785.2,35.0]
[1717077407316,1.91,3785.7,3785.2,35.02638184]
[1717077411906,1.91,3786.1,3785.2,35.02638184]
[1717077412216,1.91,3786.1,3785.3,2.59588552]
[1717077412716,1.91,3786.1,3785.4,0.02615825]
[1717077412923,1.91,3786.1,3785.5,35.0]
[1717077413224,1.91,3786.1,3785.6,0.02607864]
[1717077413605,2.79,3787.9,3785.6,0.02607864]
[1717077413606,2.64018,3787.7,3786.0,2.64125]
[1717077413810,2.64018,3787.7,3786.4,37.64102]
[1717077414059,1.91,3787.5,3786.4,37.64102]
[1717077414188,1.91,3787.5,3786.5,0.02963269]
[1717077414380,1.91,3787.0,3786.5,0.02963269]
[1717077414580,1.91,3787.0,3786.6,2.64085]
[1717077414831,2.63982,3788.2,3786.7,2.6254264]
[1717077415033,1.91,3787.6,3786.7,2.6254264]
[1717077415176,1.91,3787.6,3786.8,2.64072]
[1717077415480,1.91,3787.6,3786.9,0.03182322]
[1717077417129,1.91,3787.6,3787.0,2.6406]
[1717077417421,1.91,3787.6,3787.1,0.29869203]
[1717077417727,1.91,3787.6,3787.2,35.0]
[1717077418099,1.91,3787.6,3787.3,0.03134172]
[1717077418302,2.63948,3788.7,3787.3,0.03134172]
[1717077418629,1.91,3787.9,3787.4,2.64033]
[1717077418936,1.91,3787.9,3787.5,0.94522227]
[1717077419082,1.91,3788.3,3787.6,2.64018]
[1717077419634,1.91,3788.4,3787.8,2.64004]
[1717077419918,1.91,3788.4,3787.9,2.59588552]
[1717077420123,1.91,3788.4,3787.9,2.62682915]
[1717077420331,2.63876,3789.7,3788.0,2.63988]
[1717077420538,1.91,3788.9,3788.2,2.63971]
[1717077420912,1.91,3788.9,3788.3,0.03339358]
[1717077421422,1.91,3788.5,3788.4,35.0]
[1717077421629,1.91,3788.5,3788.4,37.59588552]
[1717077421802,1.91,3788.5,3788.4,37.63575441]
[1717077422506,1.91,3788.7,3788.4,37.63575441]
[1717077424480,1.91,3789.1,3788.4,37.63575441]
[1717077424676,1.91,3789.1,3788.5,5.63954]
[1717077424879,1.91,3789.1,3788.6,1.84859828]
[1717077425043,1.91,3789.2,3788.6,0.03973642]
[1717077425226,1.91,3789.2,3788.7,2.63938]
[1717077425428,1.91,3789.2,3788.8,35.0]
[1717077425777,1.91,3789.6,3788.8,35.03960396]
[1717077425951,1.91,3789.6,3788.9,2.59588552]
[1717077426271,1.91,3789.6,3789.0,0.03947152]
[1717077426571,1.91,3789.6,3789.1,35.0]
[1717077426931,1.91,3789.6,3789.2,0.03933909]
[1717077427130,1.91,3789.6,3789.3,2.59588552]
[1717077427461,1.91,3789.6,3789.4,0.03920668]
[1717077427976,1.91,3789.6,3788.9,2.63924]
[1717077428147,1.91,3789.6,3789.5,0.03914048]
[1717077428651,1.91,3789.6,3789.0,35.0]
[1717077428977,1.91,3789.6,3789.5,0.03914048]
[1717077429158,1.91,3790.0,3789.1,22.0991]
[1717077429479,1.91,3790.0,3789.2,2.59588552]
[1717077429691,1.91,3790.0,3789.2,2.63522461]
[1717077431035,2.63805,3790.7,3789.2,2.63522461]
[1717077431354,1.91,3789.9,3789.2,9.41577557]
[1717077431561,1.91,3789.9,3789.3,2.11272328]
[1717077431841,1.91,3789.9,3789.4,0.0388264]
[1717077432233,1.91,3790.3,3789.4,2.63889]
[1717077432551,1.91,3790.3,3789.5,3.30600252]
[1717077432697,1.91,3790.3,3789.6,35.0]
[1717077432909,2.63805,3790.7,3789.6,35.0]
[1717077433135,2.63805,3790.7,3789.7,0.03862781]
[1717077433136,1.91,3790.4,3789.7,0.03862781]
[1717077433740,1.91,3790.4,3789.8,37.63863]
[1717077433941,1.91,3790.4,3789.9,2.59588552]
[1717077434127,1.91,3790.4,3789.9,2.63438095]
[1717077434445,2.5475,3791.5,3790.0,5.63852]
[1717077434645,1.91,3790.7,3790.1,38.0]
[1717077435203,1.91,3790.7,3790.0,6.78055096]
[1717077435403,2.79,3792.2,3790.0,0.03842924]
[1717077435404,1.91,3790.2,3790.0,0.03842924]
[1717077435629,2.63845,3790.1,3789.3,6.78055096]
[1717077435848,2.63819,3790.5,3790.0,0.03842924]
[1717077436055,1.91,3790.2,3789.4,1.9140551]
[1717077436249,2.6379,3790.9,3790.0,0.03842924]
[1717077436452,2.6379,3790.9,3789.7,6.78055096]
[1717077436453,1.91,3790.6,3789.7,6.78055096]
[1717077436636,1.91,3790.6,3790.0,0.03842924]
[1717077436834,1.91,3790.6,3789.8,35.6780551]
[1717077437146,1.91,3790.6,3790.0,0.03842924]
[1717077437467,1.91,3790.2,3790.0,0.0432329]
[1717077438043,2.6379,3790.9,3790.0,0.0432329]
[1717077438044,0.26709544,3792.4,3790.0,0.0432329]
[1717077438203,1.91,3791.1,3790.5,6.78055096]
[1717077438408,1.91,3791.1,3790.1,40.98429188]
[1717077438606,2.63735,3791.7,3790.2,3.0]
[1717077438807,1.91,3791.1,3790.2,3.0]
[1717077439028,1.91,3791.1,3790.3,35.0]
[1717077439239,1.91,3791.1,3790.4,4.9140551]
[1717077439438,1.91,3790.7,3790.4,1.9140551]
[1717077439648,0.93191046,3790.7,3790.4,1.9140551]
[1717077440036,0.93191046,3790.7,3790.5,35.0]
[1717077440222,0.93191046,3790.7,3790.4,1.9140551]
[1717077440554,0.93191046,3790.7,3790.5,0.19140551]
[1717077440934,1.91,3791.1,3790.6,35.0]
[1717077442730,2.63759,3791.4,3790.6,35.0]
[1717077442926,1.91,3791.0,3790.6,35.0]
[1717077445619,1.91,3791.0,3790.5,0.19140551]
[1717077445942,1.91,3791.0,3790.6,0.21054606]
[1717077451860,1.91,3791.0,3790.4,1.9140551]
[1717077451861,2.6379,3790.9,3790.4,1.9140551]
[1717077452064,4.54811,3790.6,3790.2,19.46]
[1717077452264,4.54811,3790.6,3790.2,22.05588552]
[1717077454345,4.54811,3790.6,3789.6,6.78055096]
[1717077454927,3.99786476,3790.6,3789.7,35.0]
[1717077455272,1.91,3790.2,3789.7,35.0]
[1717077455674,2.63832,3790.3,3789.2,13.416131]
[1717077455675,1.91,3789.8,3789.2,1.056131]
[1717077455971,1.91,3789.8,3789.2,1.6917441]
[1717077456158,1.91,3789.8,3789.3,35.04934021]
[1717077456361,1.91,3789.8,3789.3,0.04934021]
[1717077456875,1.91,3789.8,3789.3,35.04934021]
[1717077457077,2.63874,3789.7,3789.3,35.0]
[1717077457277,2.63874,3789.7,3789.4,2.59588552]
[1717077458333,2.63874,3789.7,3789.2,1.6917441]
[1717077458529,4.54874,3789.7,3789.3,35.0]
[1717077458733,2.63874,3789.7,3789.3,35.04934021]
[1717077459753,1.91,3789.8,3789.3,35.04934021]
[1717077459966,2.63874,3789.7,3789.3,35.04934021]
[1717077460164,2.63874,3789.7,3789.4,2.59588552]
[1717077460350,1.91,3789.8,3789.4,2.59588552]
[1717077460551,1.91,3789.8,3789.5,0.05794639]
[1717077460760,1.91,3789.8,3789.6,35.0]
[1717077461174,1.91,3789.8,3789.7,0.0577478]
[1717077461780,4.54867,3789.8,3789.7,0.0577478]
[1717077462489,4.54867,3789.8,3789.2,0.6356131]
[1717077462785,1.91,3789.4,3789.3,35.59356131]
[1717077462988,2.63867,3789.8,3789.3,35.64339988]
[1717077463194,1.91,3789.7,3789.3,35.64339988]
[1717077463498,1.91,3792.4,3789.3,35.64339988]
[1717077463499,2.63814,3790.6,3789.3,35.64339988]
[1717077463795,1.91,3790.8,3789.4,3.51309314]
[1717077463960,1.91,3790.8,3789.6,0.54814179]
[1717077464289,1.91,3790.8,3789.8,35.0]
[1717077464473,1.91,3790.8,3789.9,4.0794062]
[1717077464674,1.91,3790.8,3790.0,0.91720762]
[1717077466554,2.63755,3791.4,3790.0,0.91720762]
[1717077466922,1.91,3791.1,3790.1,35.91720762]
[1717077467230,1.91,3791.1,3790.2,2.3799656]
[1717077467361,1.91,3791.1,3790.2,3.7553159]
[1717077467699,1.91,3791.1,3790.1,1.3753503]
[1717077467900,1.91,3791.1,3790.3,35.0]
[1717077469362,2.63726,3791.9,3790.3,35.0]
[1717077469572,2.63726,3791.9,3790.4,0.91686105]
[1717077469573,1.91,3791.6,3790.4,0.91686105]
[1717077469780,1.91,3791.6,3790.5,2.59588552]
[1717077470397,2.63726,3791.9,3790.5,2.59588552]
[1717077470698,1.91,3791.5,3790.5,2.59588552]
[1717077470894,1.91,3792.4,3790.6,3.55487816]
[1717077470895,2.6369,3792.4,3790.6,3.55487816]
[1717077471097,1.91,3792.0,3790.8,6.78055096]
[1717077471301,1.91,3792.0,3791.1,35.0]
[1717077471756,1.91,3791.6,3791.1,35.0]
[1717077474866,2.6371,3792.1,3790.8,6.78055096]
[1717077475066,2.6371,3792.1,3790.9,3.0]
[1717077475067,1.91,3791.8,3790.9,3.0]
[1717077475372,2.6371,3792.1,3791.0,1.05879635]
[1717077475858,1.91,3791.8,3791.0,1.05879635]
[1717077477371,2.6371,3792.1,3791.0,1.05879635]
[1717077477565,2.63677,3792.6,3791.0,1.05879635]
[1717077477781,1.91,3792.1,3791.0,1.05879635]
[1717077477982,1.91,3792.1,3791.1,0.51375672]
[1717077479116,1.91,3792.1,3791.2,35.0]
[1717077480113,2.63677,3792.6,3791.2,35.0]
[1717077480319,1.91,3792.1,3791.2,35.0]
[1717077480632,0.06592376,3792.5,3791.1,0.51375672]
[1717077480847,5.79,3792.8,3791.2,0.45725531]
[1717077480848,2.63716,3792.0,3791.2,0.45725531]
[1717077481023,1.91,3791.3,3791.2,0.45725531]
[1717077481326,2.63716,3792.0,3791.2,0.45725531]
[1717077481564,1.91,3791.7,3791.2,0.45725531]
[1717077481686,3.0,3792.8,3791.2,0.45725531]
[1717077481687,2.63661,3792.8,3791.2,0.45725531]
[1717077482005,1.91,3792.2,3791.3,41.78055096]
[1717077482205,1.91,3792.2,3791.4,5.59588552]
[1717077482586,1.91,3792.2,3791.4,3.0]
[1717077483110,1.91,3792.2,3791.5,35.0]
[1717077483305,1.91,3792.2,3791.6,3.0]
[1717077483709,5.42609,3793.5,3791.4,3.0]
[1717077483710,1.91,3792.4,3791.4,3.0]
[1717077483913,1.91,3791.7,3791.4,38.0]
[1717077484083,1.91,3791.7,3791.5,2.59588552]
[1717077485123,1.91,3791.7,3791.4,3.0]
[1717077485425,1.91,3791.7,3791.2,0.45725531]
[1717077485610,1.91,3791.3,3791.2,0.45725531]
[1717077489724,1.91,3791.3,3791.2,7.06828431]
[1717077489926,1.91,3791.3,3791.2,0.45725531]
[1717077490120,1.144461,3791.3,3791.2,3.45725531]
[1717077490323,1.91,3791.5,3791.3,0.34572553]
[1717077490542,2.63645,3793.0,3791.4,6.414216]
[1717077490757,1.91,3791.9,3791.5,9.78055096]
[1717077490912,1.91,3791.9,3791.3,3.34572553]
[1717077490913,1.91,3791.9,3791.6,7.428578]
[1717077491111,1.91,3791.9,3791.7,3.0]
[1717077491313,1.91,3791.9,3791.8,0.3]
[1717077491737,1.91,3791.9,3791.4,3.0]
[1717077491941,1.91,3791.9,3791.5,2.62788]
[1717077492149,1.91,3791.9,3791.6,3.0]
[1717077492374,2.63645,3793.0,3791.4,3.0]
[1717077492512,2.63645,3793.0,3791.5,6.78055096]
[1717077492716,1.91,3791.8,3791.6,4.27638765]
[1717077493185,1.91,3791.8,3791.7,3.0]
[1717077493467,1.91,3791.8,3791.7,4.347373]